bitfinex-derivatives/quotes_ETHF0:USTF0_20251216
["timestamp","ask_amount","ask_price","bid_price","bid_amount"]
[1765922149908,1.54621653,2952.5,2952.4,1.4833]
[1765922150211,3.01921653,2952.5,2952.4,1.4833]
[1765922150611,3.01921653,2952.5,2952.4,0.7146]
[1765922151408,1.64239,2952.4,2952.3,0.00507709]
[1765922161017,1.64239,2952.4,2952.3,1.48837709]
[1765922163711,0.16939,2952.4,2952.3,1.48837709]
[1765922163914,1.63969,2952.4,2952.3,1.48837709]
[1765922164317,0.89089,2952.4,2952.3,1.48837709]
[1765922164716,1.63969,2952.4,2952.3,1.48837709]
[1765922167622,1.51047709,2952.9,2952.8,1.5426]
[1765922167818,1.5054,2952.6,2952.5,1.2427]
[1765922168114,1.5054,2952.6,2952.5,2.0091]
[1765922168817,1.5054,2952.4,2952.3,0.00507709]
[1765922169020,2.88247893,2952.4,2952.3,0.00507709]
[1765922169317,0.7566,2950.1,2950.0,0.4665]
[1765922169517,0.16945,2951.3,2950.0,0.4665]
[1765922169518,15.728,2951.2,2950.1,1.5426]
[1765922169815,2.88247893,2950.5,2950.4,0.7762]
[1765922170019,2.88247893,2950.5,2950.0,0.4665]
[1765922170215,2.88247893,2950.5,2949.5,0.4665]
[1765922170216,2.88247893,2950.1,2949.5,0.4665]
[1765922170414,2.13367893,2949.8,2949.7,1.5426]
[1765922170621,2.13654666,2950.1,2950.0,2.0091]
[1765922170823,2.88534666,2950.1,2950.0,1.2427]
[1765922171321,2.88534666,2950.1,2950.0,2.0091]
[1765922171712,0.00286773,2950.1,2950.0,2.0091]
[1765922172413,0.75946773,2950.1,2950.0,2.0091]
[1765922172826,2.88534666,2950.1,2949.5,0.47047737]
[1765922173812,2.88247893,2949.8,2949.7,1.5426]
[1765922174221,1.5054,2949.6,2949.5,1.24667737]
[1765922174417,1.5054,2949.6,2949.5,2.01307737]
[1765922174613,0.7566,2949.6,2949.5,2.01307737]
[1765922174814,2.88247893,2949.8,2949.7,1.5426]
[1765922177416,1.5054,2949.6,2949.5,2.01307737]
[1765922178824,0.7566,2949.6,2949.5,2.01307737]
[1765922179527,2.13367893,2949.7,2949.6,1.5426]
[1765922179827,1.37707893,2950.0,2949.9,1.5426]
[1765922180126,0.00286773,2950.1,2950.0,2.0091]
[1765922191241,0.00507709,2950.5,2950.4,1.5426]
[1765922191936,1.67485,2951.4,2951.3,1.5426]
[1765922192334,42.47768633,2951.4,2951.3,1.5426]
[1765922193039,43.85665504,2951.4,2951.3,1.5426]
[1765922194438,42.93840504,2951.4,2951.3,1.5426]
[1765922194639,1.38180504,2951.4,2951.3,1.5426]
[1765922195239,2.09570504,2951.4,2951.3,1.5426]
[1765922200343,2.81650504,2951.4,2951.3,1.5426]
[1765922205842,0.00283633,2951.4,2951.3,1.5426]
[1765922206049,0.73203633,2951.4,2951.3,1.5426]
[1765922206847,0.00283633,2951.4,2951.3,1.5426]
[1765922213053,0.73203633,2951.4,2951.3,1.5426]
[1765922213648,0.00283633,2951.4,2951.3,1.5426]
[1765922214854,1.45283633,2951.4,2951.3,1.5426]
[1765922218058,1.45,2951.2,2951.1,0.00507709]
[1765922218258,2.82896871,2951.2,2951.1,1.49287709]
[1765922218556,0.00283633,2951.4,2951.3,1.4878]
[1765922218851,2.11100504,2951.4,2951.3,1.4878]
[1765922219256,2.83180504,2951.4,2951.3,1.4878]
[1765922219855,1.45,2951.2,2951.1,0.00507709]
[1765922220065,2.82896871,2951.2,2951.1,0.00507709]
[1765922220359,2.82896871,2951.2,2951.1,0.76937709]
[1765922221161,2.10816871,2951.2,2951.1,1.49287709]
[1765922221357,2.82896871,2951.2,2951.1,0.00507709]
[1765922225862,1.37896871,2951.2,2951.1,1.49647709]
[1765922226165,2.87446871,2951.2,2951.1,1.49647709]
[1765922231059,2.87446871,2951.2,2951.1,0.00507709]
[1765922234267,2.87446871,2951.2,2951.1,0.74397709]
[1765922234865,2.87446871,2951.2,2951.1,1.47107709]
[1765922235267,0.74033633,2951.4,2951.3,1.466]
[1765922235466,0.00283633,2951.4,2951.3,1.466]
[1765922235660,2.11930504,2951.4,2951.3,1.466]
[1765922235975,2.11930504,2951.4,2951.3,0.7389]
[1765922235976,2.87730504,2951.4,2951.3,0.7389]
[1765922236164,2.87645427,2951.4,2951.3,0.7389]
[1765922236364,2.87645427,2951.4,2951.3,1.466]
[1765922241174,1.49833633,2951.4,2951.3,1.466]
[1765922241372,2.11845427,2951.4,2951.3,1.466]
[1765922241578,2.87645427,2951.4,2951.3,1.466]
[1765922243376,1.49833633,2951.4,2951.3,1.466]
[1765922245880,0.00283633,2951.4,2951.3,1.466]
[1765922250278,0.74033633,2951.4,2951.3,1.466]
[1765922251583,0.00283633,2951.4,2951.3,1.466]
[1765922262792,0.73203633,2951.4,2951.3,1.466]
[1765922262989,0.00283633,2951.4,2951.3,1.466]
[1765922267094,1.477,2951.6,2951.5,1.9681]
[1765922267287,2.8549171,2951.6,2951.5,1.9681]
[1765922267894,2.85774385,2951.6,2951.5,1.9681]
[1765922268192,1.38074385,2951.6,2951.5,1.9681]
[1765922268790,0.00282675,2951.6,2951.5,1.9681]
[1765922271493,2.85774385,2951.6,2951.5,1.9681]
[1765922271797,2.85774385,2951.6,2951.5,0.4322]
[1765922272196,2.85774385,2951.6,2951.5,1.1855]
[1765922276502,1.477,2951.2,2951.1,1.54097709]
[1765922276708,2.8549171,2951.2,2951.1,1.54097709]
[1765922277401,2.1071171,2951.2,2951.1,1.54097709]
[1765922278296,0.00282675,2951.6,2951.5,1.9681]
[1765922279700,1.47982675,2951.6,2951.5,1.9681]
[1765922279907,1.47982675,2951.6,2951.5,1.1855]
[1765922280209,1.47982675,2951.6,2951.5,0.4322]
[1765922281309,1.477,2951.2,2951.1,1.54097709]
[1765922281501,0.7292,2951.2,2951.1,1.54097709]
[1765922281899,1.477,2951.2,2951.1,0.00507709]
[1765922283802,1.477,2951.2,2950.5,1.9429]
[1765922283803,0.7292,2950.6,2950.5,1.9429]
[1765922284109,2.1113171,2950.6,2950.5,1.9429]
[1765922284298,1.3779171,2950.6,2950.5,1.9429]
[1765922284908,0.7334,2950.6,2950.5,1.9429]
[1765922286508,2.8979171,2950.8,2950.7,1.4794]
[1765922292609,2.1113171,2951.1,2951.0,1.4794]
[1765922292815,2.1113171,2951.1,2951.0,1.9189]
[1765922293012,2.8979171,2951.1,2951.0,1.9189]
[1765922293511,1.52,2951.4,2951.3,1.4794]
[1765922294814,2.8979171,2951.4,2951.3,1.4794]
[1765922296011,0.7334,2951.4,2951.3,1.4794]
[1765922298312,1.52,2951.4,2951.3,1.4794]
[1765922298911,0.7334,2951.4,2951.3,1.4794]
[1765922299617,1.52,2951.4,2951.3,1.4794]
[1765922303415,2.89801594,2951.4,2951.3,1.4794]
[1765922306124,2.11139408,2951.4,2951.3,1.4794]
[1765922311129,1.37799408,2951.4,2951.3,1.4794]
[1765922311329,2.11139408,2951.4,2951.3,1.4794]
[1765922313232,2.89799408,2951.4,2951.3,1.4794]
[1765922315928,2.89799408,2951.4,2951.3,0.7563]
[1765922316230,0.7543,2951.1,2951.0,1.9823]
[1765922316430,2.13229408,2951.1,2951.0,1.9823]
[1765922316726,2.88509408,2951.1,2951.0,1.2323]
[1765922316929,2.13229408,2951.1,2951.0,1.9823]
[1765922318033,2.88509408,2951.1,2951.0,1.9823]
[1765922327437,2.88509408,2951.1,2950.5,0.4665]
[1765922327738,2.88509408,2950.9,2950.8,1.5428]
[1765922328640,2.13229408,2950.9,2950.8,1.5428]
[1765922329234,2.88509408,2950.9,2950.8,1.5428]
[1765922330740,0.2411,2951.5,2950.8,1.5428]
[1765922330942,2.13229408,2951.0,2950.9,1.5428]
[1765922332237,2.88509408,2951.0,2950.9,1.5428]
[1765922333643,1.64849725,2951.6,2951.0,2.0145]
[1765922333841,1.37799408,2951.2,2951.1,1.5428]
[1765922334147,1.50992675,2951.6,2951.5,2.0145]
[1765922334441,2.88792083,2951.6,2951.5,2.0145]
[1765922334736,0.16944,2951.4,2950.6,1.5428]
[1765922334944,2.88509408,2950.7,2950.6,1.5428]
[1765922350158,1.502,2950.6,2950.5,0.4665]
[1765922351362,1.502,2950.5,2950.4,0.7318]
[1765922351562,1.81169408,2950.5,2950.0,1.9406]
[1765922351759,1.502,2950.5,2950.4,0.7318]
[1765922352769,2.87999408,2950.5,2950.4,1.4741]
[1765922353066,1.37799408,2950.5,2950.4,1.4741]
[1765922353362,0.7783,2950.7,2950.6,1.4741]
[1765922353566,2.15629408,2950.7,2950.6,1.4741]
[1765922354264,1.502,2950.6,2950.0,0.4665]
[1765922354464,2.87999408,2950.1,2950.0,1.9406]
[1765922356064,0.7783,2949.6,2949.5,1.94977737]
[1765922356264,1.502,2949.6,2949.5,1.94977737]
[1765922356465,0.7783,2949.6,2949.5,1.94977737]
[1765922357464,2.88507117,2949.8,2949.7,1.4741]
[1765922357762,2.16137117,2949.8,2949.7,1.4741]
[1765922359373,1.38307117,2949.8,2949.7,1.4741]
[1765922359766,2.16137117,2949.8,2949.7,1.4741]
[1765922361276,2.88507117,2949.8,2949.7,1.4741]
[1765922362470,0.00507709,2949.8,2949.7,1.4741]
[1765922366088,0.16947,2950.9,2949.7,1.4741]
[1765922366089,2.88103122,2950.7,2950.6,1.4741]
[1765922366272,2.88103122,2950.7,2950.6,0.7318]
[1765922366474,1.502,2950.6,2950.0,0.4572]
[1765922366771,0.7783,2950.1,2950.0,1.9313]
[1765922367079,1.50707709,2950.3,2950.2,1.4741]
[1765922370776,0.00507709,2950.3,2950.2,1.4741]
[1765922371881,1.502,2950.1,2950.0,0.4572]
[1765922372076,0.7783,2950.1,2950.0,1.9313]
[1765922372276,1.50707709,2950.3,2950.2,1.4741]
[1765922372582,0.78337709,2950.3,2950.2,1.4741]
[1765922373274,0.00507709,2950.3,2950.2,1.4741]
[1765922375485,42.17903122,2951.2,2951.1,1.5435]
[1765922375486,40.8,2951.2,2951.1,1.5435]
[1765922375674,1.5434,2951.2,2951.1,1.5435]
[1765922376178,1.5434,2951.2,2951.1,0.7613]
[1765922376482,1.5434,2951.2,2951.1,1.5435]
[1765922376980,0.7785,2951.2,2951.1,1.5435]
[1765922377188,1.54847709,2951.4,2951.3,1.5435]
[1765922377885,1.54847709,2951.4,2951.3,0.7613]
[1765922378981,1.5434,2951.2,2951.1,1.54857709]
[1765922386493,1.54847709,2951.4,2951.3,1.5435]
[1765922386990,1.54847709,2951.4,2951.3,0.7613]
[1765922387195,1.5434,2951.2,2951.1,1.54857709]
[1765922387397,1.5434,2951.2,2951.1,0.00507709]
[1765922390195,1.5434,2951.2,2951.1,0.76637709]
[1765922391499,1.55255527,2951.4,2951.1,1.54857709]
[1765922391693,1.5434,2951.2,2951.1,1.54857709]
[1765922392098,1.5434,2951.2,2951.1,0.76637709]
[1765922392801,1.5434,2951.2,2951.1,1.54857709]
[1765922392991,0.7785,2951.2,2951.1,1.54857709]
[1765922393192,1.5434,2951.2,2951.1,1.54857709]
[1765922393391,1.5434,2951.2,2951.1,0.76637709]
[1765922393597,1.5434,2951.2,2951.1,0.00507709]
[1765922394289,1.5434,2951.2,2951.1,0.76637709]
[1765922395293,0.00507709,2951.4,2951.3,1.5435]
[1765922395500,1.54847709,2951.4,2951.3,0.7613]
[1765922395700,1.54847709,2951.4,2951.3,1.5435]
[1765922396302,0.7785,2951.2,2951.1,1.54857709]
[1765922396499,1.54847709,2951.4,2951.3,1.5435]
[1765922397699,0.78357709,2951.4,2951.3,1.5435]
[1765922397900,0.00507709,2951.4,2951.3,1.5435]
[1765922398401,0.78357709,2951.4,2951.3,1.5435]
[1765922399291,1.5434,2951.2,2951.1,1.54857709]
[1765922399601,1.5434,2951.2,2951.1,0.00507709]
[1765922400803,1.38311527,2951.4,2951.1,1.54857709]
[1765922401096,0.7785,2951.2,2951.1,1.54857709]
[1765922401300,1.5434,2951.2,2951.1,0.00507709]
[1765922401798,1.5434,2951.2,2951.1,0.76637709]
[1765922402009,1.5434,2951.2,2951.1,1.54857709]
[1765922403306,0.7785,2951.2,2951.1,1.54857709]
[1765922403607,1.54847709,2951.4,2951.3,1.5435]
[1765922407208,1.51337709,2951.4,2951.3,1.5435]
[1765922407410,0.00507709,2951.4,2951.3,1.5435]
[1765922408307,1.4908,2952.0,2951.9,1.4897]
[1765922408903,0.761,2952.0,2951.9,1.4897]
[1765922409097,1.4908,2952.0,2951.9,1.4897]
[1765922409304,4.68461618,2952.0,2951.9,0.00435478]
[1765922410811,1.4908,2951.2,2951.1,1.49477709]
[1765922411910,1.4908,2951.2,2951.1,1.49843329]
[1765922413716,0.761,2951.2,2951.1,1.49843329]
[1765922414220,1.4908,2951.2,2951.1,1.49843329]
[1765922418316,1.4908,2951.5,2951.4,1.4897]
[1765922418516,2.142378,2952.0,2951.9,0.7704]
[1765922418818,2.872178,2952.0,2951.9,1.4897]
[1765922419117,2.872178,2952.0,2951.9,0.7704]
[1765922419317,1.49413982,2952.0,2951.9,0.7704]
[1765922419520,1.49413982,2952.0,2951.9,1.4897]
[1765922419712,0.76433982,2952.0,2951.9,1.4897]
[1765922421820,0.00333982,2952.0,2951.9,1.4897]
[1765922422617,0.00507709,2952.2,2952.1,1.4897]
[1765922423624,0.00754407,2952.2,2952.1,1.4897]
[1765922426927,0.00754407,2952.2,2952.1,2.86669074]
[1765922427726,0.00754407,2952.2,2952.1,1.4897]
[1765922431235,0.00754407,2952.2,2952.1,2.86669074]
[1765922434027,2.90189074,2952.9,2952.8,1.5519]
[1765922435033,0.00424255,2952.9,2952.8,1.5519]
[1765922436744,4.255e-05,2952.9,2952.8,1.5519]
[1765922438833,1.37699074,2953.7,2953.6,0.7196]
[1765922438834,1.493,2953.7,2953.6,0.7196]
[1765922439233,1.493,2953.7,2953.6,1.5054]
[1765922440038,1.49632026,2953.7,2953.6,1.5094871]
[1765922441740,0.77882026,2953.7,2953.6,1.5094871]
[1765922442532,1.49632026,2953.7,2953.6,1.5094871]
[1765922444639,1.49632026,2953.7,2953.6,0.7236871]
[1765922445138,1.49632026,2953.7,2953.6,1.5094871]
[1765922445738,2.873311,2953.7,2953.6,1.5094871]
[1765922445940,2.873311,2953.7,2953.6,0.7236871]
[1765922447640,2.873311,2953.7,2953.6,0.0040871]
[1765922447834,2.873311,2953.7,2953.6,0.7236871]
[1765922449138,1.49632026,2953.7,2953.6,0.7236871]
[1765922450542,1.49632026,2953.7,2953.6,1.5094871]
[1765922454745,1.49632026,2953.7,2953.6,0.7236871]
[1765922455148,1.49632026,2953.7,2953.6,1.5094871]
[1765922458743,1.49632026,2953.7,2953.6,0.7236871]
[1765922458947,1.49632026,2953.7,2953.6,0.0040871]
[1765922459252,1.49632026,2953.7,2953.6,0.7236871]
[1765922459446,1.49632026,2953.7,2953.6,1.5094871]
[1765922459642,1.49632026,2953.7,2953.6,0.7236871]
[1765922460347,1.49632026,2953.7,2953.6,1.5094871]
[1765922461150,0.00332026,2953.7,2953.6,1.5094871]
[1765922461345,1.49632026,2953.7,2953.6,1.5094871]
[1765922461650,1.49632026,2953.7,2953.6,0.0040871]
[1765922462243,1.49632026,2953.7,2953.6,0.7236871]
[1765922462944,1.49632026,2953.7,2953.6,1.5094871]
[1765922463150,0.77882026,2953.7,2953.6,1.5094871]
[1765922463350,0.00332026,2953.7,2953.6,1.5094871]
[1765922464948,0.77882026,2953.7,2953.6,1.5094871]
[1765922467247,0.00332026,2953.7,2953.6,1.5094871]
[1765922471852,0.74602026,2953.7,2953.6,1.5094871]
[1765922472550,1.46742026,2953.7,2953.6,1.5094871]
[1765922472756,2.84314277,2953.7,2953.6,0.0040871]
[1765922472956,1.46742026,2953.7,2953.6,0.0040871]
[1765922473152,0.00332026,2953.7,2953.6,1.4713871]
[1765922473553,1.46742026,2953.7,2953.6,1.4713871]
[1765922473856,1.46742026,2953.7,2953.6,0.0040871]
[1765922478460,0.00332026,2953.7,2953.6,1.4713871]
[1765922478863,0.74602026,2953.7,2953.6,1.4713871]
[1765922481057,0.00332026,2953.7,2953.6,1.4713871]
[1765922481460,1.46742026,2953.7,2953.6,0.0040871]
[1765922483953,1.46742026,2953.7,2953.6,1.4713871]
[1765922484154,0.00332026,2953.7,2953.6,1.4713871]
[1765922484762,2.41070557,2954.8,2954.7,1.4673]
[1765922484960,1.54494251,2955.3,2954.7,1.4673]
[1765922485165,0.7427,2954.8,2954.7,1.4673]
[1765922485358,1.4641,2954.6,2954.5,1.9189]
[1765922485559,1.4641,2954.6,2954.1,0.16928]
[1765922485755,1.47026314,2954.6,2954.5,0.7284]
[1765922485960,1.47026314,2954.6,2954.5,1.9189]
[1765922488866,0.00616314,2954.6,2954.5,1.9189]
[1765922489980,40.8,2955.4,2954.5,1.9189]
[1765922490178,40.8,2955.4,2955.3,1.4673]
[1765922490378,1.4641,2955.4,2955.3,1.4673]
[1765922490979,1.46696488,2955.4,2955.3,1.4673]
[1765922491380,0.9170368,2955.4,2955.3,1.99607701]
[1765922491686,40.8,2955.8,2955.7,1.4673]
[1765922491884,1.1868,2955.8,2955.7,1.99607701]
[1765922492086,1.37477725,2956.2,2956.0,0.4516]
[1765922492295,43.36157725,2956.2,2956.1,0.52877701]
[1765922492588,43.36512703,2956.2,2956.1,0.53160047]
[1765922492887,2.56512703,2956.2,2956.1,0.53160047]
[1765922494387,0.1234,2955.6,2955.5,0.4516]
[1765922494686,0.1239,2955.2,2955.1,0.00507709]
[1765922494982,1.49867725,2955.2,2955.1,0.00507709]
[1765922495393,0.1244,2954.6,2954.5,1.2055]
[1765922495786,0.1244,2954.6,2954.5,0.4541862]
[1765922496883,0.1244,2954.6,2954.5,0.4757862]
[1765922497091,0.1244,2954.6,2954.5,1.2296862]
[1765922498197,2.33753556,2955.5,2954.5,1.2296862]
[1765922498198,2.33753556,2955.8,2954.7,1.5204]
[1765922499396,2.33753556,2955.8,2954.5,1.9961862]
[1765922500089,40.8,2955.7,2954.5,1.9961862]
[1765922500593,0.16923,2955.2,2954.5,1.9961862]
[1765922503793,40.8,2955.7,2955.0,1.2271]
[1765922503794,0.16923,2955.1,2955.0,1.2271]
[1765922503993,0.16923,2955.1,2955.0,1.9936]
[1765922504698,0.16923,2955.1,2955.0,1.2271]
[1765922506100,0.16923,2955.1,2955.0,0.4732]
[1765922512401,0.16923,2955.1,2955.0,1.2271]
[1765922512703,0.16923,2955.1,2955.0,1.9936]
[1765922514805,0.16923,2955.1,2955.0,1.2271]
[1765922516603,0.16923,2955.1,2955.0,1.9936]
[1765922517504,1.54401103,2955.1,2955.0,1.9936]
[1765922517700,1.54401103,2955.1,2955.0,0.4732]
[1765922518006,1.54401103,2955.1,2954.5,1.9961862]
[1765922518007,0.16926,2954.7,2954.5,1.9961862]
[1765922518303,1.37478103,2954.6,2954.5,1.9961862]
[1765922521207,1.37478103,2954.6,2954.5,0.4757862]
[1765922521403,1.37478103,2954.6,2954.5,1.9961862]
[1765922521705,1.37478103,2955.6,2955.5,0.4732]
[1765922521904,0.16919,2956.0,2955.9,1.5204]
[1765922522302,0.16915,2956.6,2956.1,1.5204]
[1765922522601,1.37478103,2956.3,2956.1,1.5204]
[1765922523409,1.10972391,2956.6,2956.1,1.5204]
[1765922523704,0.16915,2956.5,2956.1,1.5204]
[1765922525002,2.33878441,2956.2,2955.9,0.00507709]
[1765922525206,0.16919,2955.8,2955.5,2.002]
[1765922525510,40.96919,2955.8,2955.5,2.002]
[1765922526005,40.8,2955.8,2955.5,0.4732]
[1765922526207,0.94050036,2955.7,2955.0,2.002]
[1765922526408,0.94050036,2955.7,2955.1,0.00507709]
[1765922526810,0.94050036,2955.7,2955.1,0.74627709]
[1765922527212,3.27573499,2955.7,2955.1,0.74627709]
[1765922527509,0.16922,2955.3,2955.1,0.74627709]
[1765922528702,0.16922,2955.3,2955.1,1.53387709]
[1765922529104,0.94050036,2955.7,2955.6,1.5288]
[1765922529611,0.94050036,2955.7,2955.6,0.7412]
[1765922529816,40.96919,2955.8,2955.6,1.5288]
[1765922530414,40.96919,2955.8,2955.7,1.5288]
[1765922530917,40.8,2955.8,2955.7,1.5288]
[1765922531119,0.00507709,2955.9,2955.8,1.5288]
[1765922531619,40.80507709,2955.9,2955.8,1.5288]
[1765922537317,40.97426709,2955.9,2955.8,1.5288]
[1765922537513,40.97426709,2955.9,2955.8,0.7412]
[1765922537820,40.97426709,2955.9,2955.5,1.2039]
[1765922538420,40.97426709,2955.9,2955.5,1.9915]
[1765922538618,0.1692,2955.6,2955.5,0.4627]
[1765922538816,15.9102,2955.6,2955.5,0.4627]
[1765922539521,0.16922,2955.4,2955.1,1.53387709]
[1765922541420,0.16922,2955.3,2955.1,1.53387709]
[1765922542718,0.16922,2955.3,2955.1,0.74627709]
[1765922543923,0.16922,2955.3,2955.1,1.53387709]
[1765922544119,15.741,2955.6,2955.5,1.9915]
[1765922544324,0.16919,2955.8,2955.7,1.5288]
[1765922545319,0.00507709,2955.9,2955.8,1.5288]
[1765922546629,15.741,2956.1,2956.0,1.9915]
[1765922546821,0.00354978,2956.2,2956.1,1.5288]
[1765922551726,0.00354978,2956.2,2956.0,0.4627]
[1765922552232,0.16917,2956.1,2956.0,1.9915]
[1765922553831,15.74254978,2956.2,2956.1,1.4621]
[1765922555335,4.978e-05,2956.2,2956.1,1.4621]
[1765922571541,0.16913,2957.0,2956.9,1.4936]
[1765922571741,1.66603,2956.8,2956.7,0.74997709]
[1765922571946,1.66603,2956.8,2956.7,0.00507709]
[1765922571947,3.03934276,2956.8,2956.7,0.00507709]
[1765922572740,3.04349243,2956.8,2956.7,0.0080508]
[1765922574047,3.98215396,2956.8,2956.7,0.0080508]
[1765922574541,1.66605,2956.6,2956.5,1.2063]
[1765922574742,3.03936276,2956.6,2956.5,1.2063]
[1765922575647,3.03936276,2956.6,2956.5,1.21041848]
[1765922575849,1.66606,2956.4,2956.3,1.49867709]
[1765922576053,3.03937276,2956.4,2956.3,1.49867709]
[1765922576444,1.66607,2956.1,2956.0,0.4627]
[1765922576646,3.03938276,2956.1,2956.0,0.4627]
[1765922576845,0.7305,2955.6,2955.5,1.9563]
[1765922577046,0.7305,2955.6,2955.5,1.95929318]
[1765922577446,2.10381276,2955.7,2955.6,1.4936]
[1765922577742,2.10452643,2955.7,2955.6,1.4936]
[1765922578049,2.87092643,2955.7,2955.6,1.4936]
[1765922581753,2.10452643,2955.7,2955.6,1.4936]
[1765922583648,1.4969,2955.6,2955.5,1.21059318]
[1765922583856,1.6661,2955.6,2955.5,1.21059318]
[1765922584260,1.65661,2955.4,2955.3,0.00507709]
[1765922584552,3.03063643,2955.4,2955.3,0.00507709]
[1765922584745,3.03063643,2955.4,2955.3,0.79287709]
[1765922585360,3.03063643,2955.4,2955.3,0.79609892]
[1765922587657,3.03063643,2955.4,2955.3,0.00829892]
[1765922588047,3.03063643,2955.4,2955.3,0.79609892]
[1765922588250,3.03063643,2955.4,2955.3,0.00829892]
[1765922588457,3.03063643,2955.4,2955.3,0.79609892]
[1765922597663,3.03063643,2955.4,2955.3,1.52319892]
[1765922601964,3.03063643,2955.4,2955.3,0.79609892]
[1765922602175,3.03063643,2955.4,2955.3,0.00829892]
[1765922602368,1.4874,2955.4,2955.3,1.52319892]
[1765922602562,1.4874,2955.8,2955.7,1.5149]
[1765922602869,1.4874,2955.8,2955.7,0.7878]
[1765922603574,1.4874,2955.6,2955.5,1.9499]
[1765922603770,2.86142643,2955.6,2955.5,1.9499]
[1765922603971,1.4874,2955.4,2955.3,0.00829892]
[1765922604169,2.86142643,2955.4,2955.3,0.00829892]
[1765922604365,3.03063643,2955.4,2955.3,0.00829892]
[1765922606373,3.03063643,2955.4,2955.3,0.79609892]
[1765922606673,3.03063643,2955.4,2955.3,1.52319892]
[1765922607373,3.03116358,2955.4,2955.3,0.79609892]
[1765922608773,3.03116358,2955.4,2955.3,0.00829892]
[1765922611979,3.03116358,2955.4,2955.3,0.79609892]
[1765922612472,0.94151,2955.4,2955.3,1.52319892]
[1765922612976,1.71063604,2955.8,2955.7,1.5149]
[1765922613181,17.88285358,2955.9,2955.8,1.5149]
[1765922613369,18.82290628,2955.9,2955.8,1.5149]
[1765922613674,19.53800628,2955.9,2955.8,1.5149]
[1765922614682,19.53800628,2955.9,2955.8,0.7878]
[1765922614875,19.53800628,2955.9,2955.8,1.5567]
[1765922616578,18.59795358,2955.9,2955.8,1.5567]
[1765922617379,19.53773145,2955.9,2955.8,1.5567]
[1765922618984,19.70692145,2955.9,2955.8,0.7878]
[1765922619284,0.7401,2955.6,2955.5,1.9272]
[1765922619674,18.77964358,2955.9,2955.8,0.7233]
[1765922620282,1.4999,2955.6,2955.5,1.9272]
[1765922625603,1.4999,2955.6,2955.5,1.1583]
[1765922625788,1.4999,2955.6,2955.5,1.9272]
[1765922629498,0.7401,2955.6,2955.5,1.9272]
[1765922629688,1.4999,2955.6,2955.5,1.9272]
[1765922631198,1.4999,2955.6,2955.5,1.1583]
[1765922631398,1.4999,2955.4,2955.3,1.50049892]
[1765922631597,1.4999,2955.4,2955.3,0.73159892]
[1765922631802,1.4999,2955.4,2955.3,1.50049892]
[1765922632103,0.7401,2955.4,2955.3,1.50049892]
[1765922636306,1.4999,2955.4,2955.3,1.50049892]
[1765922636506,0.7401,2955.4,2955.3,1.50049892]
[1765922639410,1.4999,2955.4,2955.3,1.50049892]
[1765922640011,1.4999,2955.4,2955.3,0.73159892]
[1765922640714,1.4999,2955.4,2955.3,1.50049892]
[1765922641106,0.7401,2955.4,2955.3,1.50049892]
[1765922641306,1.4999,2955.4,2955.3,0.73159892]
[1765922641707,1.66911,2955.4,2955.3,0.00829892]
[1765922642213,3.04385709,2955.4,2955.3,0.00829892]
[1765922644515,2.28405709,2955.4,2955.3,0.73159892]
[1765922644709,3.02165709,2955.4,2955.3,1.48169892]
[1765922644910,1.64691,2955.4,2955.3,0.73159892]
[1765922645215,1.64691,2955.4,2955.3,0.00829892]
[1765922646516,1.64691,2955.4,2955.3,0.78369892]
[1765922647018,1.64691,2955.4,2955.3,0.00829892]
[1765922650211,1.4777,2954.6,2954.5,1.9869]
[1765922650519,2.12914709,2955.0,2954.9,1.5255]
[1765922651225,2.85496667,2955.0,2954.9,1.52870592]
[1765922656816,2.13166667,2955.0,2954.9,1.52870592]
[1765922657221,2.85496667,2955.0,2954.9,1.52870592]
[1765922667028,2.85496667,2955.0,2954.9,0.77860592]
[1765922667532,3.43380667,2955.0,2954.9,0.00320592]
[1765922668728,44.23380667,2955.0,2954.9,0.00320592]
[1765922669423,44.2341493,2955.0,2954.9,0.00320592]
[1765922671128,45.17758093,2955.0,2954.9,0.00320592]
[1765922671334,42.9320093,2955.0,2954.9,1.52870592]
[1765922671623,2.1320093,2955.0,2954.9,1.52870592]
[1765922671832,2.8553093,2955.0,2954.9,1.52870592]
[1765922672620,2.1320093,2955.0,2954.9,1.52870592]
[1765922672926,0.00251958,2955.0,2954.9,1.52870592]
[1765922676026,1.3776093,2955.0,2954.9,1.52870592]
[1765922676418,0.00251958,2955.0,2954.9,1.52870592]
[1765922677627,1.53791958,2955.0,2954.9,0.77860592]
[1765922677833,1.53791958,2955.0,2954.9,1.52830592]
[1765922679428,0.00251958,2955.0,2954.9,1.52830592]
[1765922679633,0.77071958,2955.0,2954.9,1.52830592]
[1765922679831,0.00251958,2955.0,2954.9,1.52830592]
[1765922681130,0.77071958,2955.0,2954.9,1.52830592]
[1765922681336,0.00251958,2955.0,2954.9,1.52830592]
[1765922703143,1.958e-05,2955.0,2954.9,1.52830592]
[1765922704346,2.88458972,2956.0,2955.9,1.5366]
[1765922704847,2.88458972,2956.0,2955.5,0.472]
[1765922705143,0.7757,2955.6,2955.5,2.0086]
[1765922705348,1.37770512,2955.6,2955.0,0.472]
[1765922705641,2.88458972,2955.3,2955.2,1.5366]
[1765922706148,1.5095,2955.1,2955.0,2.0086]
[1765922707350,0.7757,2955.1,2955.0,2.0086]
[1765922709741,1.5095,2955.1,2955.0,2.0086]
[1765922709947,1.9191,2955.0,2954.7,0.00507709]
[1765922710338,1.5095,2955.0,2954.9,0.75460592]
[1765922710951,1.5095,2955.0,2954.9,0.00320592]
[1765922713750,1.9191,2955.0,2954.9,0.00320592]
[1765922714958,2.08834,2955.0,2954.9,0.00320592]
[1765922716743,0.7757,2953.8,2953.1,6.10458414]
[1765922716950,0.7757,2953.6,2953.5,2.0086]
[1765922717553,1.5095,2953.6,2953.5,2.0086]
[1765922717752,1.5095,2953.6,2953.5,0.00366954]
[1765922718248,2.88390939,2953.6,2953.5,0.00366954]
[1765922719352,2.88390939,2953.6,2953.5,0.75506954]
[1765922719760,2.88390939,2953.6,2953.5,0.00366954]
[1765922723160,2.88390939,2953.6,2953.5,0.75506954]
[1765922723661,2.88390939,2953.6,2953.5,2.01226954]
[1765922724664,2.88390939,2953.6,2953.5,1.22706954]